Department Family,Entity,Date,Expense Type,Expense Area,Supplier,Transaction Number,Amount,Description,Supplier Postcode,Supplier Type,Expenditure Type
DWP,ILF,01/12/2014,Other Prepayments,Central,Data Voice & Video Sol,152197,596.16,Engineer work for Government Secure Internet, SK1 3TZ,,Administrative
DWP,ILF,01/12/2014,Other Prepayments,Central,Data Voice & Video Sol,152198,824.98,Engineer work for Government Secure Internet, SK1 3TZ,,Administrative
DWP,ILF,01/12/2014,Other Prepayments,Central,Data Voice & Video Sol,152199,820.8,Engineer work for Government Secure Internet, SK1 3TZ,,Administrative
DWP,ILF,09/12/2014,Other Prepayments,Central,Data Voice & Video Sol,152410,7119.35,Engineer work for Government Secure Internet, SK1 3TZ,,Administrative
DWP,ILF,09/12/2014,Other Prepayments,Central,Data Voice & Video Sol,152411,1050.18,Engineer work for Government Secure Internet, SK1 3TZ,,Administrative
DWP,ILF,09/12/2014,Other Prepayments,Central,Data Voice & Video Sol,152412,1348.26,Engineer work for Government Secure Internet, SK1 3TZ,,Administrative
DWP,ILF,09/12/2014,Other Prepayments,Central,Data Voice & Video Sol,152413,6730.99,Engineer work for Government Secure Internet, SK1 3TZ,,Administrative
DWP,ILF,09/12/2014,Other Prepayments,Central,Data Voice & Video Sol,152414,3490.25,Engineer work for Government Secure Internet, SK1 3TZ,,Administrative
DWP,ILF,09/12/2014,Other Prepayments,Central,Data Voice & Video Sol,152415,6597.38,Engineer work for Government Secure Internet, SK1 3TZ,,Administrative
DWP,ILF,11/12/2014,Other Prepayments,Central,DWP,152469,1538.49,Business subscription iro Grant Recovery, FY5 3TA,,Administrative
DWP,ILF,17/12/2014,Other Prepayments,Central,Dynamic Data Systems Ltd,152561,2526,Bespoke software development, NG16 1RL,,Administrative
DWP,ILF,29/12/2014,Other Prepayments,Central,Switchshop,152667,12721.06,Annual HP contract renewal for telecommunication systems, SG4 8HP,,Administrative
DWP,ILF,24/12/2014,Staff Wellbeing,Facilities,Diners Club,152638,1062.99,Travel procurement (mainly train) for staff on ILF business,E14 5LB,,Administrative
DWP,ILF,30/12/2014,Staff Wellbeing,Closure,Working Transitions,152710,12480,Career advice,NN4 7JJ,,Administrative
DWP,ILF,03/12/2014,Training courses/Seminars,Human Resources,Datrix Training Ltd,152290,594,Training Courses,PR7 6TE,,Administrative
DWP,ILF,01/12/2014,Independent Assessor visits,Social Work,Independent Assessor Costs,152157,716.4,Assessment of social care needs and recommendation of ILF funding contribution,0,,Programme
DWP,ILF,01/12/2014,Independent Assessor visits,Social Work,Independent Assessor Costs,152158,583.65,Assessment of social care needs and recommendation of ILF funding contribution,0,,Programme
DWP,ILF,01/12/2014,Independent Assessor visits,Social Work,Independent Assessor Costs,152159,1000.8,Assessment of social care needs and recommendation of ILF funding contribution,0,,Programme
DWP,ILF,08/12/2014,Independent Assessor visits,Social Work,Independent Assessor Costs,152360,2446.65,Assessment of social care needs and recommendation of ILF funding contribution,0,,Programme
DWP,ILF,08/12/2014,Independent Assessor visits,Social Work,Independent Assessor Costs,152360,1330.2,Assessment of social care needs and recommendation of ILF funding contribution,0,,Programme
DWP,ILF,08/12/2014,Independent Assessor visits,Social Work,Independent Assessor Costs,152362,843.75,Assessment of social care needs and recommendation of ILF funding contribution,0,,Programme
DWP,ILF,08/12/2014,Independent Assessor visits,Social Work,Independent Assessor Costs,152364,946.8,Assessment of social care needs and recommendation of ILF funding contribution,0,,Programme
DWP,ILF,08/12/2014,Independent Assessor visits,Social Work,Independent Assessor Costs,152365,1861.85,Assessment of social care needs and recommendation of ILF funding contribution,0,,Programme
DWP,ILF,08/12/2014,Independent Assessor visits,Social Work,Independent Assessor Costs,152366,1065.15,Assessment of social care needs and recommendation of ILF funding contribution,0,,Programme
DWP,ILF,08/12/2014,Independent Assessor visits,Social Work,Independent Assessor Costs,152366,782.55,Assessment of social care needs and recommendation of ILF funding contribution,0,,Programme
DWP,ILF,08/12/2014,Independent Assessor visits,Social Work,Independent Assessor Costs,152367,1174.95,Assessment of social care needs and recommendation of ILF funding contribution,0,,Programme
DWP,ILF,08/12/2014,Independent Assessor visits,Social Work,Independent Assessor Costs,152367,858.6,Assessment of social care needs and recommendation of ILF funding contribution,0,,Programme
DWP,ILF,16/12/2014,Independent Assessor visits,Social Work,Independent Assessor Costs,152497,645.4,Assessment of social care needs and recommendation of ILF funding contribution,0,,Programme
DWP,ILF,16/12/2014,Independent Assessor visits,Social Work,Independent Assessor Costs,152499,1596.15,Assessment of social care needs and recommendation of ILF funding contribution,0,,Programme
DWP,ILF,16/12/2014,Independent Assessor visits,Social Work,Independent Assessor Costs,152502,831.75,Assessment of social care needs and recommendation of ILF funding contribution,0,,Programme
DWP,ILF,16/12/2014,Independent Assessor visits,Social Work,Independent Assessor Costs,152503,2268,Assessment of social care needs and recommendation of ILF funding contribution,0,,Programme
DWP,ILF,22/12/2014,Independent Assessor visits,Social Work,Independent Assessor Costs,152595,995.2,Assessment of social care needs and recommendation of ILF funding contribution,0,,Programme
DWP,ILF,22/12/2014,Independent Assessor visits,Social Work,Independent Assessor Costs,152597,1128.15,Assessment of social care needs and recommendation of ILF funding contribution,0,,Programme
DWP,ILF,03/12/2014,Trustee Expenses,Corporate Affairs,Trustee Expenses,152308,619.3,"Travel, Subsitence or general expenses incurred by trustees during the normal course of duty",0,,Administrative
DWP,ILF,03/12/2014,Trustee Expenses,Corporate Affairs,Trustee Expenses,152308,706.1,"Travel, Subsitence or general expenses incurred by trustees during the normal course of duty",0,,Administrative
DWP,ILF,09/12/2014,Rent & Facilities Lease,Facilities,Land Securities Trillium,152377,1418.63,"Building lease,maintenance and utilities", LS11 9DX,,Administrative
DWP,ILF,09/12/2014,Rent & Facilities Lease,Facilities,Land Securities Trillium,152378,70281.17,"Building lease,maintenance and utilities", LS11 9DX,,Administrative
DWP,ILF,11/12/2014,Additional Facilities,Facilities,DWP,152469,1025.67,Business subscription iro Grant Recovery, FY5 3TA,,Administrative
DWP,ILF,15/12/2014,Additional Facilities,Facilities,Nottingham City Council,152743,1194.6,Rates , NG1 2DE,,Administrative
DWP,ILF,15/12/2014,Rates,Facilities,Nottingham City Council,152744,7110,Rates , NG1 2DE,,Administrative
DWP,ILF,29/12/2014,Postage,Facilities,Royal Mail,152672,8000,Postal services, PE4 5PG,,Administrative
DWP,ILF,11/12/2014,Stationery & Supplies,Facilities,Banner Business Services,152467,972.58,Stationary and Supplies,NR3 1QU,,Administrative
DWP,ILF,22/12/2014,Stationery & Supplies,Facilities,Banner Business Services,152604,635.32,Stationary and Supplies,NR3 1QU,,Administrative
DWP,ILF,09/12/2014,Stakeholder Engagement,Closure,Redfern Travel Ltd,152394,630.6,Travel and Accomodation bookings,BD1 3AZ,,Administrative
DWP,ILF,01/12/2014,Software Licensing,Human Resources,Ceridian Ltd,152196,1112.94,Payroll and HR services, E14 9GE,,Administrative
DWP,ILF,30/12/2014,Software Licensing,Human Resources,Ceridian Ltd,152716,522.08,Payroll and HR services, E14 9GE,,Administrative
DWP,ILF,30/12/2014,Software Licensing,Human Resources,Ceridian Ltd,152717,1112.94,Payroll and HR services, E14 9GE,,Administrative
DWP,ILF,17/12/2014,Software Services,Information & Governance,Dynamic Data Systems Ltd,152560,7020,Bespoke software development, NG16 1RL,,Administrative
DWP,ILF,17/12/2014,Software Services,Information & Governance,Dynamic Data Systems Ltd,152561,5052,Bespoke software development, NG16 1RL,,Administrative
DWP,ILF,17/12/2014,Software Services,Information & Governance,Dynamic Data Systems Ltd,152561,2160,Bespoke software development, NG16 1RL,,Administrative
DWP,ILF,01/12/2014,Business Continuity,Information & Governance,Node4,152200,1410,Website services, DE24 8HZ,,Administrative
DWP,ILF,01/12/2014,Website Services,Information & Governance,Node4,152200,540,Website services, DE24 8HZ,,Administrative
DWP,ILF,29/12/2014,Equipment Servicing,Information & Governance,Switchshop,152667,1156.48,Annual HP contract renewal for telecommunication systems, SG4 8HP,,Administrative
DWP,ILF,09/12/2014,Misc IT Costs,Information & Governance,XMA Ltd,152379,1085.01,Printer Toner Cartidges,NG11 7EP,,Administrative
DWP,ILF,22/12/2014,Misc IT Costs,Information & Governance,XMA Ltd,152605,840.02,Printer Toner Cartidges,NG11 7EP,,Administrative
DWP,ILF,09/12/2014,Legal Costs,Payment Security,Shakespeares,152397,1320,"Provision of Legal Service iro debt recovery, human resource, procurement or organisational litigation",LE1 1QH,,Administrative
DWP,ILF,09/12/2014,Legal Costs,Payment Security,Shakespeares,152398,1140,"Provision of Legal Service iro debt recovery, human resource, procurement or organisational litigation",LE1 1QH,,Administrative
DWP,ILF,09/12/2014,Legal Costs,Payment Security,Shakespeares,152399,540,"Provision of Legal Service iro debt recovery, human resource, procurement or organisational litigation",LE1 1QH,,Administrative
DWP,ILF,09/12/2014,Legal Costs,Payment Security,Shakespeares,152400,802,"Provision of Legal Service iro debt recovery, human resource, procurement or organisational litigation",LE1 1QH,,Administrative
DWP,ILF,09/12/2014,Legal Costs,Payment Security,Shakespeares,152401,1140,"Provision of Legal Service iro debt recovery, human resource, procurement or organisational litigation",LE1 1QH,,Administrative
DWP,ILF,09/12/2014,General T&S ,Finance,Redfern Travel Ltd,152394,904.36,Travel and Accomodation bookings,BD1 3AZ,,Administrative
DWP,ILF,09/12/2014,General T&S ,Corporate Affairs,Redfern Travel Ltd,152394,871.48,Travel and Accomodation bookings,BD1 3AZ,,Administrative
DWP,ILF,09/12/2014,General T&S ,Information & Governance,Redfern Travel Ltd,152394,848.58,Travel and Accomodation bookings,BD1 3AZ,,Administrative
